Cogmind - Beta 11.1 @@@ ROGUE MODE // 2022.05.13 @ 23:56:02 Player: ktur Result: Self-destructed Performance ------------- Evolutions (7) 3500 Regions Visited (14) 2800 Robots Destroyed (6) 30 Value Destroyed (448) 448 Prototype IDs (5) 100 Alien Tech Used (0) 0 Bonus (4699) 4699 TOTAL SCORE: 11577 Bonus ------- Pacifist 4085 Follower Combat Kills 114 Entered DSFs 500 Cogmind --------- Core Integrity 722/1300 Matter 246/300 Energy 4/100 System Corruption 0% Temperature Cool (0) Movement Walking (120) Location -3/Testing Parts ------- > --- POWER (1) -------- (None) > --- PROPULSION (16) -- Myomer Leg Cooled Impulse Thruster > --- UTILITY (2) ------ Advanced Heat Sink Precision Matter Filter > --- WEAPON (2) ------- Heavy Wave Gun Hypervelocity Multirail > --- INVENTORY (5) ---- Plasma Rifle Heavy Flail Chainsword Peak State ------------ > --- POWER ------------ (None) > --- PROPULSION ------- Myomer Leg Cooled Impulse Thruster > --- UTILITY ---------- Advanced Heat Sink Precision Matter Filter > --- WEAPON ----------- Heavy Wave Gun Hypervelocity Multirail > --- INVENTORY -------- Plasma Rifle Heavy Flail Chainsword [Rating: 50] Favorites ----------- Power None Propulsion Light Treads Treads Light Treads Leg Titanium Leg Flight Unit VTOL Module Utility Advanced Heat Sink Device Advanced Heat Sink Weapon Datajack Energy Gun Plasma Rifle Ballistic Gun Hypervelocity Multirail Slashing Weapon Chainsword Special Melee Weapon Datajack Build | -11 -10 -9 -8 -7 -6 -6 -5 -5 -5 -4 -4 -4 -3 -3 ------- Run | Scr Mat Mat Mat Fac Fac DSF Fac Upp Upp Fac Upp Upp Res Tes Slots Evolved 14 | . . 2 2 2 2 . 2 . . 2 . . 2 . Power . | . . . . . . . . . . . . . . . Propulsion 14 | . . 2 2 2 2 . 2 . . 2 . . 2 . Utility . | . . . . . . . . . . . . . . . Weapon . | . . . . . . . . . . . . . . . Parts Attached 26 | 2 . 2 2 . 1 4 1 . . . 1 . 1 12 Power . | . . . . . . . . . . . . . . . Engine . | . . . . . . . . . . . . . . . Core . | . . . . . . . . . . . . . . . Reactor . | . . . . . . . . . . . . . . . Propulsion 17 | 2 . 2 2 . . 4 1 . . . 1 . 1 4 Treads 8 | 2 . . 1 . . 3 1 . . . 1 . . . Leg 6 | . . 2 1 . . 1 . . . . . . 1 1 Wheel . | . . . . . . . . . . . . . . . Hover . | . . . . . . . . . . . . . . . Flight 3 | . . . . . . . . . . . . . . 3 Utility 2 | . . . . . . . . . . . . . . 2 Device 2 | . . . . . . . . . . . . . . 2 Storage . | . . . . . . . . . . . . . . . Processor . | . . . . . . . . . . . . . . . Hackware . | . . . . . . . . . . . . . . . Protection . | . . . . . . . . . . . . . . . Artifact . | . . . . . . . . . . . . . . . Weapon 7 | . . . . . 1 . . . . . . . . 6 Energy Gun 2 | . . . . . . . . . . . . . . 2 Energy Cannon . | . . . . . . . . . . . . . . . Ballistic Gun 3 | . . . . . . . . . . . . . . 3 Ballistic Cannon . | . . . . . . . . . . . . . . . Launcher . | . . . . . . . . . . . . . . . Special Weapon . | . . . . . . . . . . . . . . . Impact Weapon . | . . . . . . . . . . . . . . . Slashing Weapon 1 | . . . . . . . . . . . . . . 1 Piercing Weapon . | . . . . . . . . . . . . . . . Special Melee Weapon 1 | . . . . . 1 . . . . . . . . . Unidentified Prototypes 5 | . . . . . . . . . . . . . . 5 Corrupted Parts 1 | . . . . . . . . . . . 1 . . . System Corruption 1 | . . . . . . . . . . . 1 . . . Parts Lost 13 | . . . . . . 2 4 . . . 3 1 . 3 Power . | . . . . . . . . . . . . . . . Propulsion 12 | . . . . . . 2 3 . . . 3 1 . 3 Utility . | . . . . . . . . . . . . . . . Weapon 1 | . . . . . . . 1 . . . . . . . Highest Loss Streak 3 | . . . . . . 2 2 . . . 3 1 . 2 To Critical Strikes 1 | . . . . . . 1 . . . . . . . . Average Slot Usage (%) 21 | . 28 38 36 30 29 41 38 17 17 15 10 4 . 13 Treads 10 | . 28 22 18 15 13 19 20 11 11 10 8 4 . . Leg 6 | . . 16 18 15 13 15 10 5 5 5 2 . . 3 Special Melee Weapon 1 | . . . . . 3 6 5 . . . . . . . Naked Turns 57 | . . . . . . . . . . . . 12 39 6 Heaviest Build 17 | . . . . . 1 1 1 . . . . . . 17 Greatest Support 28 | 3 3 3 3 3 3 3 3 3 3 3 3 3 3 28 Greatest Overweight (x) 2 | . . . . . . . . . . . . . . 2 Average Overweight (x) . | . . . . . . . . . . . . . . . Largest Inventory Capacity 5 | 5 5 5 5 5 5 5 5 5 5 5 5 5 5 5 Average Capacity 5 | 5 5 5 5 5 5 5 5 5 5 5 5 5 5 5 Most Carried 5 | . 1 1 3 5 5 4 4 4 4 4 4 4 4 5 Average Carried 3 | . . 1 2 4 4 4 4 4 4 4 4 4 4 4 Final Capacity 5 | 5 5 5 5 5 5 5 5 5 5 5 5 5 5 5 Final Carried 5 | . 1 1 3 5 4 4 4 4 4 4 4 4 4 3 Class Distribution -------------------- 90% | Mutant 9% | Scavenger-Mutant Dominant Class ---------------- Mutant | -10/Materials Mutant | -9/Materials Mutant | -8/Materials Mutant | -7/Factory Mutant | -6/Factory Mutant | -6/DSF Mutant | -5/Factory Mutant | -5/Upper Caves Mutant | -5/Upper Caves Mutant | -4/Factory Mutant | -4/Upper Caves Mutant | -4/Upper Caves Mutant | -3/Research Mutant | -3/Testing Resources | -11 -10 -9 -8 -7 -6 -6 -5 -5 -5 -4 -4 -4 -3 -3 ----------- Run | Scr Mat Mat Mat Fac Fac DSF Fac Upp Upp Fac Upp Upp Res Tes Matter Collected 456 | 120 84 . . . . 82 5 . . . 7 . . 158 Remotely . | . . . . . . . . . . . . . . . Salvage Created 413 | . . . . . . . . . . . . . . 413 Parts 16 | . . . . . . . . . . . . . . 16 Haulers Intercepted . | . . . . . . . . . . . . . . . Recyclers Shooed 1 | . . . . . . . 1 . . . . . . . Parts Field Recycled . | . . . . . . . . . . . . . . . Retrieved Matter . | . . . . . . . . . . . . . . . Parts Self-Destructed . | . . . . . . . . . . . . . . . Prevented . | . . . . . . . . . . . . . . . Kills | -11 -10 -9 -8 -7 -6 -6 -5 -5 -5 -4 -4 -4 -3 -3 ------- Run | Scr Mat Mat Mat Fac Fac DSF Fac Upp Upp Fac Upp Upp Res Tes Combat Hostiles Destroyed 6 | . . . . . . . . . . . . . . 6 Guns 6 | . . . . . . . . . . . . . . 6 Classes Destroyed 1 | . . . . . . . . . . . . . . 1 Grunt 6 | . . . . . . . . . . . . . . 6 Best Kill Streak 4 | . . . . . . . . . . . . . . 4 Combat Bots Only 4 | . . . . . . . . . . . . . . 4 Max Kills in Single Turn 2 | . . . . . . . . . . . . . . 2 Gunslinging . | . . . . . . . . . . . . . . . Exploded . | . . . . . . . . . . . . . . . Melee . | . . . . . . . . . . . . . . . Uniques/NPCs Destroyed . | . . . . . . . . . . . . . . . Combat | -11 -10 -9 -8 -7 -6 -6 -5 -5 -5 -4 -4 -4 -3 -3 -------- Run | Scr Mat Mat Mat Fac Fac DSF Fac Upp Upp Fac Upp Upp Res Tes Damage Taken 3292 | . 144 172 161 106 . 94 891 . . . 487 116 354 767 Core 1203 | . 89 23 33 20 . . 251 . . . 149 60 210 368 Absorbed by Shields . | . . . . . . . . . . . . . . . Core Remaining (%) 88 | 100 64 94 94 97 . 100 . . 74 . . 81 . . Volleys Fired 18 | . . . . . . . . . . . . . . 18 Largest 2 | . . . . . . . . . . . . . . 2 Hottest 118 | . . . . . . . . . . . . . . 118 Shots Fired 19 | . . . . . . . . . . . . . . 19 Gun 19 | . . . . . . . . . . . . . . 19 Cannon . | . . . . . . . . . . . . . . . Launcher . | . . . . . . . . . . . . . . . Special . | . . . . . . . . . . . . . . . Kinetic 18 | . . . . . . . . . . . . . . 18 Thermal 1 | . . . . . . . . . . . . . . 1 Explosive . | . . . . . . . . . . . . . . . Electromagnetic . | . . . . . . . . . . . . . . . Robot Hit Streak 8 | . . . . . . . . . . . . . . 8 Robot Miss Streak 4 | . . . . . . . . . . . . . . 4 Penetration Max 1 | . . . . . . . . . . . . . . 1 Secondary Targets . | . . . . . . . . . . . . . . . Shots Hit Robots 17 | . . . . . 1 . . . . . . . . 16 Core Hits 16 | . 1 . . . . . 1 . . . 1 . . 13 Critical Kills 6 | . . . . . . . . . . . . . . 6 Critical Parts Destroyed 9 | . . . . . . . . . . . . . . 9 Critical Strikes 15 | . . . . . . . . . . . . . . 15 Destroy 15 | . . . . . . . . . . . . . . 15 Melee Attacks 2 | . . . . . 1 . . . . . . . . 1 Impact . | . . . . . . . . . . . . . . . Slashing 1 | . . . . . . . . . . . . . . 1 Piercing . | . . . . . . . . . . . . . . . Sneak Attacks 1 | . . . . . 1 . . . . . . . . . Combat Hostiles . | . . . . . . . . . . . . . . . Follow-up Attacks . | . . . . . . . . . . . . . . . Damage Inflicted 275 | . 6 9 . 21 . . 28 . . . 16 9 8 178 Guns 178 | . . . . . . . . . . . . . . 178 Cannons . | . . . . . . . . . . . . . . . Explosions . | . . . . . . . . . . . . . . . Melee . | . . . . . . . . . . . . . . . Ramming 97 | . 6 9 . 21 . . 28 . . . 16 9 8 . Kinetic 178 | . . . . . . . . . . . . . . 178 Thermal . | . . . . . . . . . . . . . . . Explosive . | . . . . . . . . . . . . . . . Electromagnetic . | . . . . . . . . . . . . . . . Impact . | . . . . . . . . . . . . . . . Slashing . | . . . . . . . . . . . . . . . Piercing . | . . . . . . . . . . . . . . . Highest Corruption 1 | . . . . . . . 1 1 1 . 1 1 . . Average Corruption 1 | . . . . . . . 1 1 1 . 1 1 . . Corruption Purged . | . . . . . . . . . . . . . . . Corruption Blocked . | . . . . . . . . . . . . . . . Effects 3 | . . . . . . . 1 1 1 . . . . . Message Errors 1 | . . . . . . . . . 1 . . . . . Matter Fused 1 | . . . . . . . . 1 . . . . . . Alerts 1 | . . . . . . . 1 . . . . . . . Overload Shots . | . . . . . . . . . . . . . . . Overflow Damage . | . . . . . . . . . . . . . . . Projectiles . | . . . . . . . . . . . . . . . Explosions . | . . . . . . . . . . . . . . . Melee . | . . . . . . . . . . . . . . . Knockbacks . | . . . . . . . . . . . . . . . Impact . | . . . . . . . . . . . . . . . Kinetic . | . . . . . . . . . . . . . . . Secondary . | . . . . . . . . . . . . . . . Self-Inflicted Damage 50 | . 3 4 . 10 . . 12 . . . 14 4 3 . Shots . | . . . . . . . . . . . . . . . Rammed 18 | . 1 1 . 4 . . 8 . . . 1 1 2 . Targets Rammed 18 | . 1 1 . 4 . . 8 . . . 1 1 2 . Kicked . | . . . . . . . . . . . . . . . Crushed . | . . . . . . . . . . . . . . . Highest Temperature 16 | . . . . . . . . . . . . . . 16 Average Temperature 14 | . . . . . . . . . . . . . . 14 Received Heat Transfer 547 | . 30 42 63 36 . 45 135 . . . 57 9 . 130 Siege Activations . | . . . . . . . . . . . . . . . Robots Corrupted . | . . . . . . . . . . . . . . . Combat Hostiles . | . . . . . . . . . . . . . . . Parts Fried . | . . . . . . . . . . . . . . . Impact Corruptions . | . . . . . . . . . . . . . . . Robots Melted . | . . . . . . . . . . . . . . . Combat Hostiles . | . . . . . . . . . . . . . . . Parts Melted . | . . . . . . . . . . . . . . . Heat Transferred . | . . . . . . . . . . . . . . . Parts Sabotaged . | . . . . . . . . . . . . . . . Parts Stolen . | . . . . . . . . . . . . . . . Parts Stripped . | . . . . . . . . . . . . . . . Power Chain Reactions . | . . . . . . . . . . . . . . . Missiles Intercepted . | . . . . . . . . . . . . . . . Alert | -11 -10 -9 -8 -7 -6 -6 -5 -5 -5 -4 -4 -4 -3 -3 ------- Run | Scr Mat Mat Mat Fac Fac DSF Fac Upp Upp Fac Upp Upp Res Tes Peak Influence 403 | . 60 70 44 34 16 11 140 . . 39 . . 53 403 Initial 39 | . . 25 29 19 16 11 . . . 39 . . 38 29 Average 93 | . 35 47 34 22 16 3 21 . . 39 . . 42 200 Maximum Alert Level 2 | . . . . . . . . . . . . . . 2 Low Security (%) 85 | 100 100 100 100 100 100 100 100 . . 100 . . 100 61 Level 1 13 | . . . . . . . . . . . . . . 35 Level 2 1 | . . . . . . . . . . . . . . 2 Level 3 . | . . . . . . . . . . . . . . . Level 4 . | . . . . . . . . . . . . . . . Level 5 . | . . . . . . . . . . . . . . . High Security . | . . . . . . . . . . . . . . . Max Security . | . . . . . . . . . . . . . . . Squads Dispatched 5 | . . . 1 . . . 1 . . . . 1 . 2 Investigation 2 | . . . 1 . . . 1 . . . . . . . Extermination 1 | . . . . . . . . . . . . . . 1 Reinforcement 1 | . . . . . . . . . . . . . . 1 Assault 1 | . . . . . . . . . . . . 1 . . Garrison . | . . . . . . . . . . . . . . . Intercept . | . . . . . . . . . . . . . . . Searches Triggered . | . . . . . . . . . . . . . . . Construction Impeded 1 | . . . . . . . . . . . . . . 1 Haulers Reinforced . | . . . . . . . . . . . . . . . Active Scanning Responses . | . . . . . . . . . . . . . . . Cargo Convoy Interrupts . | . . . . . . . . . . . . . . . Stealth | -11 -10 -9 -8 -7 -6 -6 -5 -5 -5 -4 -4 -4 -3 -3 --------- Run | Scr Mat Mat Mat Fac Fac DSF Fac Upp Upp Fac Upp Upp Res Tes Distress Signals 5 | . 1 . . . . . 1 . . . . . . 3 Communications Jammed . | . . . . . . . . . . . . . . . Distress Signals . | . . . . . . . . . . . . . . . Times Spotted 96 | . 8 8 5 1 . 15 18 . . . 13 11 5 12 Peak Tracking Total 12 | . 8 8 8 1 . 11 12 . . . 9 9 5 4 Tactical Retreats 6 | . 1 . . . . . 3 . . . 2 . . . Traps | -11 -10 -9 -8 -7 -6 -6 -5 -5 -5 -4 -4 -4 -3 -3 ------- Run | Scr Mat Mat Mat Fac Fac DSF Fac Upp Upp Fac Upp Upp Res Tes Traps Triggered 3 | . . . 2 . . . 1 . . . . . . . Indirectly . | . . . . . . . . . . . . . . . Trap Hack Attempts . | . . . . . . . . . . . . . . . Triggered . | . . . . . . . . . . . . . . . Disarmed . | . . . . . . . . . . . . . . . Reprogrammed . | . . . . . . . . . . . . . . . Reused . | . . . . . . . . . . . . . . . Traps Extracted . | . . . . . . . . . . . . . . . Installed . | . . . . . . . . . . . . . . . Triggered . | . . . . . . . . . . . . . . . Machines | -11 -10 -9 -8 -7 -6 -6 -5 -5 -5 -4 -4 -4 -3 -3 ---------- Run | Scr Mat Mat Mat Fac Fac DSF Fac Upp Upp Fac Upp Upp Res Tes Machines Disabled 4 | . . . . . . . . . . . . . . 4 Max in Single Turn 1 | . . . . . . . . . . . . . . 1 Machines Sabotaged . | . . . . . . . . . . . . . . . Garrisons Compromised . | . . . . . . . . . . . . . . . Overloaded Fab Kills . | . . . . . . . . . . . . . . . Hacking | -11 -10 -9 -8 -7 -6 -6 -5 -5 -5 -4 -4 -4 -3 -3 --------- Run | Scr Mat Mat Mat Fac Fac DSF Fac Upp Upp Fac Upp Upp Res Tes Machines Accessed 3 | . . . . . 1 . 2 . . . . . . . Terminals 3 | . . . . . 1 . 2 . . . . . . . Fabricators . | . . . . . . . . . . . . . . . Repair Stations . | . . . . . . . . . . . . . . . Recycling Units . | . . . . . . . . . . . . . . . Scanalyzers . | . . . . . . . . . . . . . . . Garrison Access . | . . . . . . . . . . . . . . . Total Hacks 6 | . . . . . 1 . 5 . . . . . . . Successful 2 | . . . . . 1 . 1 . . . . . . . Failed 4 | . . . . . . . 4 . . . . . . . Catastrophic 2 | . . . . . . . 2 . . . . . . . Database Lockouts . | . . . . . . . . . . . . . . . Manual 3 | . . . . . . . 3 . . . . . . . Terminals 6 | . . . . . 1 . 5 . . . . . . . Fabricators . | . . . . . . . . . . . . . . . Repair Stations . | . . . . . . . . . . . . . . . Recycling Units . | . . . . . . . . . . . . . . . Scanalyzers . | . . . . . . . . . . . . . . . Garrison Access . | . . . . . . . . . . . . . . . Terminal Hacks 2 | . . . . . 1 . 1 . . . . . . . Open DSF 2 | . . . . . 1 . 1 . . . . . . . Fabricator Hacks . | . . . . . . . . . . . . . . . Repair Station Hacks . | . . . . . . . . . . . . . . . Recycling Unit Hacks . | . . . . . . . . . . . . . . . Scanalyzer . | . . . . . . . . . . . . . . . Garrison Access Hacks . | . . . . . . . . . . . . . . . Unauthorized Hacks . | . . . . . . . . . . . . . . . Terminals . | . . . . . . . . . . . . . . . Fabricators . | . . . . . . . . . . . . . . . Repair Stations . | . . . . . . . . . . . . . . . Recycling Units . | . . . . . . . . . . . . . . . Scanalyzers . | . . . . . . . . . . . . . . . Garrison Access . | . . . . . . . . . . . . . . . Data Cores Recovered . | . . . . . . . . . . . . . . . Used . | . . . . . . . . . . . . . . . Hacking Detections 2 | . . . . . . . 2 . . . . . . . Full Trace Events 1 | . . . . . . . 1 . . . . . . . Feedback Events 1 | . . . . . . . 1 . . . . . . . Corruption 1 | . . . . . . . 1 . . . . . . . Feedback Blocked . | . . . . . . . . . . . . . . . Robot Schematics Acquired . | . . . . . . . . . . . . . . . Robots Built . | . . . . . . . . . . . . . . . Authchips . | . . . . . . . . . . . . . . . Time . | . . . . . . . . . . . . . . . Total Robot Build Rating . | . . . . . . . . . . . . . . . Part Schematics Acquired . | . . . . . . . . . . . . . . . Parts Built . | . . . . . . . . . . . . . . . Authchips . | . . . . . . . . . . . . . . . Time . | . . . . . . . . . . . . . . . Total Part Build Rating . | . . . . . . . . . . . . . . . Parts Repaired . | . . . . . . . . . . . . . . . Time . | . . . . . . . . . . . . . . . Parts Recycled . | . . . . . . . . . . . . . . . Recycled Matter . | . . . . . . . . . . . . . . . Retrieved Matter . | . . . . . . . . . . . . . . . Retrieved Components . | . . . . . . . . . . . . . . . Parts Scanalyzed . | . . . . . . . . . . . . . . . Part Schematics Acquired . | . . . . . . . . . . . . . . . Parts Damaged . | . . . . . . . . . . . . . . . Bothacking | -11 -10 -9 -8 -7 -6 -6 -5 -5 -5 -4 -4 -4 -3 -3 ------------ Run | Scr Mat Mat Mat Fac Fac DSF Fac Upp Upp Fac Upp Upp Res Tes Used RIF Installer . | . . . . . . . . . . . . . . . Robots Hacked 1 | . . . . . 1 . . . . . . . . . Non-combat 1 | . . . . . 1 . . . . . . . . . Combat . | . . . . . . . . . . . . . . . Robot Hacks Applied 1 | . . . . . 1 . . . . . . . . . find_dsf 1 | . . . . . 1 . . . . . . . . . Relay Couplers Released . | . . . . . . . . . . . . . . . Fabnet Peak Effective % . | . . . . . . . . . . . . . . . Robots Rewired 1 | . . . . . . . . . . . . . . 1 Allies Hacked . | . . . . . . . . . . . . . . . Hacks Repelled . | . . . . . . . . . . . . . . . Allies | -11 -10 -9 -8 -7 -6 -6 -5 -5 -5 -4 -4 -4 -3 -3 -------- Run | Scr Mat Mat Mat Fac Fac DSF Fac Upp Upp Fac Upp Upp Res Tes Total Allies 1 | . . . . . . . . . . . . . . 1 Largest Group 1 | . . . . . . . . . . . . . . 1 Highest-Rated Group 125 | . . . . . . . . . . . . . . 125 Highest-Rated Ally 125 | . . . . . . . . . . . . . . 125 Total Orders . | . . . . . . . . . . . . . . . Ally Attacks 8 | . . . . . . . . . . . . . . 8 Total Damage 1490 | . . . . . . . . . . . . . . 1490 Kills 6 | . . . . . . . . . . . . . . 6 Allies Corrupted 1 | . . . . . . . . . . . . . . 1 Allies Melted . | . . . . . . . . . . . . . . . Intel | -11 -10 -9 -8 -7 -6 -6 -5 -5 -5 -4 -4 -4 -3 -3 ------- Run | Scr Mat Mat Mat Fac Fac DSF Fac Upp Upp Fac Upp Upp Res Tes Robot Analysis Total . | . . . . . . . . . . . . . . . Derelict Logs Recovered 2 | . . . . . . . . 1 1 . . . . . Drone Launches . | . . . . . . . . . . . . . . . Drone Recoveries . | . . . . . . . . . . . . . . . Exploration | -11 -10 -9 -8 -7 -6 -6 -5 -5 -5 -4 -4 -4 -3 -3 ------------- Run | Scr Mat Mat Mat Fac Fac DSF Fac Upp Upp Fac Upp Upp Res Tes Turns Passed 1158 | 13 47 48 45 20 38 33 182 100 111 14 105 51 47 304 Spaces Moved 1823 | 20 89 87 80 29 70 53 345 199 222 28 202 100 86 213 Core 1671 | 20 89 87 80 29 70 53 345 199 222 28 202 100 86 61 Treads . | . . . . . . . . . . . . . . . Legs 152 | . . . . . . . . . . . . . . 152 Wheels . | . . . . . . . . . . . . . . . Hover . | . . . . . . . . . . . . . . . Flight . | . . . . . . . . . . . . . . . Fastest Speed 50 | 50 50 50 50 50 50 50 50 50 50 50 50 50 50 50 Average Speed 56 | 50 50 50 50 50 50 50 50 50 50 50 50 50 50 108 Slowest Speed 150 | 50 50 50 50 50 50 50 50 50 50 50 50 50 50 150 Overloaded Moves . | . . . . . . . . . . . . . . . Propulsion Burnouts . | . . . . . . . . . . . . . . . Robots Hopped . | . . . . . . . . . . . . . . . Cave-ins Triggered . | . . . . . . . . . . . . . . . Exploration Rate (%) 22 | 3 28 17 17 1 3 84 12 51 23 1 45 22 5 30 Regions Visited 14 Branch Regions 5 Pre-discovered Areas . | . . . . . . . . . . . . . . . Known Exits Taken 2 | . . . . . 1 . . 1 . . . . . . Unknown Exits Taken 11 | 1 1 1 1 1 . . 1 . 1 1 1 1 1 . Scrap Searched 2 | . . . . . . . . 1 . . 1 . . . Spaces Dug . | . . . . . . . . . . . . . . . Terrain Destroyed 1 | . . . . . . . . . . . . . . 1 Melee . | . . . . . . . . . . . . . . . Projectile . | . . . . . . . . . . . . . . . AOE . | . . . . . . . . . . . . . . . Terrain Rammed 1 | . . . . . . . . . . . 1 . . . Walls Destroyed . | . . . . . . . . . . . . . . . Machines Disabled . | . . . . . . . . . . . . . . . Actions | -11 -10 -9 -8 -7 -6 -6 -5 -5 -5 -4 -4 -4 -3 -3 --------- Run | Scr Mat Mat Mat Fac Fac DSF Fac Upp Upp Fac Upp Upp Res Tes Total 1898 | 21 90 89 83 34 71 56 353 198 221 27 204 100 88 263 Wait 9 | . . . . . . . . . . . . . . 9 Move 1812 | 19 88 86 79 29 69 52 345 198 221 27 201 100 85 213 Hop . | . . . . . . . . . . . . . . . Pick Up 8 | . 1 . 2 2 . . . . . . . . . 3 Fast Attach 20 | 2 . 2 2 . . 4 1 . . . 1 . 1 7 Attach 6 | . . . . . 1 . . . . . . . . 5 Detach 2 | . . . . . . . . . . . . . . 2 Swap . | . . . . . . . . . . . . . . . Drop 3 | . . . . . . . . . . . . . . 3 Fire 18 | . . . . . . . . . . . . . . 18 Melee 2 | . . . . . 1 . . . . . . . . 1 Ram 16 | . 1 1 . 3 . . 7 . . . 2 . 2 . Kick . | . . . . . . . . . . . . . . . Crush . | . . . . . . . . . . . . . . . Escape Stasis . | . . . . . . . . . . . . . . . Rewire 2 | . . . . . . . . . . . . . . 2 Trap . | . . . . . . . . . . . . . . . Miscellaneous . | . . . . . . . . . . . . . . . Route ------- -11/Scrapyard -10/Materials -9/Materials -8/Materials -7/Factory -6/Factory -6/DSF -5/Factory -5/Upper Caves -5/Upper Caves -4/Factory -4/Upper Caves -4/Upper Caves -3/Research -3/Testing History --------- Turn | Location | Event 5 | -11/Scrapyard | Discovered new exit (range 15) 14 | -11/Scrapyard | Entered Materials 40 | -10/Materials | Discovered new exit (range 16) 61 | -10/Materials | Entered another Materials area 61 | -9/Materials | Evolved 2 slots: Propulsion x2 106 | -9/Materials | Discovered new exit (range 6) 109 | -9/Materials | Entered another Materials area 109 | -8/Materials | Evolved 2 slots: Propulsion x2 147 | -8/Materials | Discovered new exit (range 16) 154 | -8/Materials | Entered Factory 154 | -7/Factory | Evolved 2 slots: Propulsion x2 168 | -7/Factory | Discovered new exit (range 7) 174 | -7/Factory | Entered another Factory area 174 | -6/Factory | Evolved 2 slots: Propulsion x2 211 | -6/Factory | Identified exit to DSF 212 | -6/Factory | Entered DSF 212 | -6/DSF | Encountered a pitched battle between 0b10 and Warlord forces 219 | -6/DSF | Spotted B-75 Beast 241 | -6/DSF | Discovered new exit (range 8) 245 | -6/DSF | Entered Factory 245 | -5/Factory | Evolved 2 slots: Propulsion x2 420 | -5/Factory | Discovered new exit (range 15) 427 | -5/Factory | Entered Upper Caves 454 | -5/Upper Caves | Identified exit to Upper Caves 527 | -5/Upper Caves | Entered another Upper Caves area 599 | -5/Upper Caves | Learned Factory emergency access door positions 626 | -5/Upper Caves | Build established: Mutant 636 | -5/Upper Caves | Discovered new exit (range 6) 638 | -5/Upper Caves | Entered Factory 638 | -4/Factory | Evolved 2 slots: Propulsion x2 647 | -4/Factory | Discovered new exit (range 11) 652 | -4/Factory | Entered Upper Caves 657 | -4/Upper Caves | Spotted B-86 Titan 706 | -4/Upper Caves | Attracted the attention of an 0b10 checkpoint 749 | -4/Upper Caves | Lost 3 parts (3n) 755 | -4/Upper Caves | Discovered new exit (range 5) 757 | -4/Upper Caves | Entered another Upper Caves area 803 | -4/Upper Caves | Attracted the attention of an 0b10 outpost 804 | -4/Upper Caves | Discovered new exit (range 9) 808 | -4/Upper Caves | Entered Research 808 | -3/Research | Evolved 2 slots: Propulsion x2 854 | -3/Research | Discovered new exit (range 2) 855 | -3/Research | Entered Testing 856 | -3/Testing | Spotted PD-SUJWERZ35L 875 | -3/Testing | Found Prototype Ballistic Gun 875 | -3/Testing | Identified Hyp. Multirail 995 | -3/Testing | Rewired PD-SUJWERZ35L 1154 | -3/Testing | Allies destroyed PD-SUJWERZ35L 1159 | -3/Testing | Self-destructed Last Messages --------------- 01130_ Acquired Prototype Device. 01130_ Identified Prc. Matter Filter. 01133_ Dropped Plasma Rifle. 01133_ K-01 Serf cleans the Tau Charger. 01133_ Acquired Prototype Energy Gun. 01133_ Identified Hvy. Wave Gun. 01137_ R-10 Processor collects Plasma Rifle. 01139_ K-01 Serf cleans the Tau Charger. 01150_ P-80 Master fails to hack PD-SUJWERZ35L. 01151_ Tau Charger explodes. 01151_ Destroyed Prototype Device. 01151_ Destroyed Lgt. Ion Engine. 01151_ K-01 Serf destroyed. 01154_ PD-SUJWERZ35L system terminally corrupted. 01154_ Slug penetrates Wall. 01155_ P-80 Master resets P-80 Master, system corruption cleaned. 01156_ Terminal disabled. 01157_ Dropped Enh. Coil Gun. 01157_ R-10 Processor collects Corrupted Prototype Reactor. 01159_ Tau Charger explodes. Map ----- +----------------------------------------------------+ | ?????????????????????# ### #?????????????????????? | | ?????????????????????# #?? ????????????????????? | | ?????????????????????# #???###???????????????????? | | ?????????????????????# #?????????????????????????? | | ????????????????????##+###+###???????????????????? | | ????????????????????# #???????????????????? | | ????????????????????# ! """ #???????????????????? | | ????????????????????# """ #???????????????????? | | ????????????????????# """ #???????????????????? | | ????????????????????# #???????????????????? | | ????????????????????# """ #???????????????????? | | ????????????????????# """ #???????????????????? | | ?????????????? ?????# """ #???????????????????? | | ??????????????? ???# #???????????????????? | | ?????????????#+#+#######+########## #?????????? | | ?????????????# ?????????? | | ?????????????# ?????????? | | ?????????????# ?????????? | | ??????? R p ?????????? | | ???????? ###### p ############+??????????? | | ?????????????# =%p #??????????????????? | | ?????????????+ = ! "" #??????????????????? | | ?????????????# % "" #??????????????????? | | ?????????????# " #??????????????????? | | ?????????????# "" #??????????????????? | | ?????????????# @ "" #??????????????????? | | ?????????????# #??????????????????? | | ?????????????#= #??????????????????? | | ?????????????# #??????????????????? | | ?????????????##################??????????????????? | | | | | | | | | | | | | | | | | | | | | | | | | | | | | | | | | | | | | | | | | +----------------------------------------------------+ Best States ------------- Heat Dissipation 65 Energy Generation 5 Energy Capacity 100 Matter Stores 300 Matter Capacity 300 Sight Range 16 Terrain Scan Density 10 Evasion (%) 55 Item Schematics ----------------- None Robot Schematics ------------------ None Fabricated ------------ Nothing Alien Tech Used ----------------- None Achievements -------------- None Challenges ------------ None Game ------ Seed LaserFlightSource Manual? 0 Play Time 00:18:36 Cumulative 408.1 hours Start 2022.05.13 @ 21:09:47 End 2022.05.13 @ 23:56:02 Sessions 3 Manual Loads 0 Difficulty Rogue Special Mode None Game No. 404 Rogue 404 Adventurer 0 Explorer 0 Win Type - Total 21 Types 13/2/3/2/0/0/0/1/0 Lore% 92 Gallery% 90 Achievement% 76 Wizard Run 0 Options --------- ASCII 0 Keyboard 0 Movement Arrows Keybinds 0 Fullscreen 1 Font 18/Smallcaps Map View 76x50 Tactical HUD 1 Map Filters NONE Filters NONE Steam 1 RUN: eee4c77b-0cbc-426a-b2a1-8b8711959a0d